Cogmind - Beta 16 @@@ ROGUE MODE // 2025.11.01 @ 23:26:09 Player: ChromeKnight Result: Destroyed by 8R-AWN with 8R-AWN's Boregun Performance ------------- Evolutions (0) 0 Regions Visited (3) 600 Robots Destroyed (14) 70 Value Destroyed (320) 320 Prototype IDs (23) 460 Alien Tech Used (0) 0 Bonus (300) 300 TOTAL SCORE: 1750 Bonus ------- Aligned with FarCom 300 Cogmind --------- Core Integrity 0/250 Matter 255/300 Energy 75/100 System Corruption 0% Temperature Warning (335) Movement Core (700) Ox13 Location -10/Exiles Parts ------- > --- POWER (1) -------- (None) > --- PROPULSION (2) --- (None) > --- UTILITY (2) ------ High-capacity Storage Unit Targeting Computer > --- WEAPON (2) ------- (None) > --- INVENTORY (20) --- Light Ion Engine Heat Sink Targeting Computer Hacking Suite Tractor Beam Heavy EM Pulse Gun Heavy EM Pulse Gun Heavy Assault Rifle Heavy Assault Rifle Grenade Launcher Makeshift Hammer Peak State ------------ > --- POWER ------------ Ion Engine > --- PROPULSION ------- (None) > --- UTILITY ---------- High-capacity Storage Unit Targeting Computer > --- WEAPON ----------- Firepult > --- INVENTORY -------- Ion Engine Light Ion Engine Heat Sink Targeting Computer Hacking Suite Tractor Beam Heavy EM Pulse Gun Heavy EM Pulse Gun Heavy Assault Rifle Heavy Assault Rifle Grenade Launcher Makeshift Hammer [Rating: 25] Favorites ----------- Power Ion Engine Engine Ion Engine Propulsion Light Treads Treads Light Treads Utility High-capacity Storage Unit Device Heat Sink Storage High-capacity Storage Unit Processor Targeting Computer Weapon Heavy EM Pulse Gun Energy Gun Heavy EM Pulse Gun Energy Cannon Firepult Ballistic Gun Heavy Assault Rifle Launcher Grenade Launcher Build | -11 -10 -10 -10 ------- Run | Yrd Mat Min Exi Slots Evolved . | . . . . Power . | . . . . Propulsion . | . . . . Utility . | . . . . Weapon . | . . . . Parts Attached 17 | 6 5 . 6 Power 2 | 1 1 . . Engine 2 | 1 1 . . Core . | . . . . Reactor . | . . . . Propulsion 2 | 2 . . . Treads 2 | 2 . . . Leg . | . . . . Wheel . | . . . . Hover . | . . . . Flight . | . . . . Utility 4 | 1 2 . 1 Device 1 | . 1 . . Storage 2 | 1 1 . . Processor 1 | . . . 1 Hackware . | . . . . Protection . | . . . . Artifact . | . . . . Weapon 9 | 2 2 . 5 Energy Gun 4 | 2 2 . . Energy Cannon 1 | . . . 1 Ballistic Gun 3 | . . . 3 Ballistic Cannon . | . . . . Launcher 1 | . . . 1 Special Weapon . | . . . . Impact Weapon . | . . . . Slashing Weapon . | . . . . Piercing Weapon . | . . . . Special Melee Weapon . | . . . . Unidentified Prototypes . | . . . . Parts Lost 7 | . . . 7 Power 2 | . . . 2 Propulsion 2 | . . . 2 Utility . | . . . . Weapon 3 | . . . 3 Highest Loss Streak 7 | . . . 7 To Critical Strikes 4 | . . . 4 Average Backups 14 | . 10 17 16 Power 2 | . . 2 3 Propulsion . | . . . . Utility 5 | . 3 8 5 Weapon 6 | . 6 7 7 Tool/Special . | . . . . Unused Backups 21 | . 1 . 20 Power 4 | . . . 4 Propulsion . | . . . . Utility 11 | . . . 11 Weapon 6 | . 1 . 5 Tool/Special . | . . . . Average Slot Usage (%) 98 | . 96 100 98 Engine 13 | . 14 14 13 Treads 27 | . 28 28 27 Device 8 | . 11 14 6 Storage 14 | . 14 14 14 Processor 4 | . . . 7 Energy Gun 18 | . 27 28 12 Ballistic Gun 8 | . . . 14 Peak Build Rating 25 | 6 11 12 25 Average Rating 11 | 4 10 11 12 On Entrance 7 | . 6 11 12 Avg Prop Armor Cover (%) . | . . . . Naked Turns . | . . . . Heaviest Build 52 | 14 52 52 52 Greatest Support 40 | 40 40 40 40 Greatest Overweight (x) 2 | . 1 1 2 Average Overweight (x) . | . . 1 1 Largest Inventory Capacity 20 | 8 20 20 20 Average Capacity 18 | 7 15 20 20 Most Carried 20 | 2 17 18 20 Average Carried 14 | . 10 17 16 Final Capacity 20 | 8 20 20 20 Final Carried 18 | 2 17 18 11 Class Distribution -------------------- 100% | Mutant Dominant Class ---------------- Mutant | -10/Materials Mutant | -10/Mines Mutant | -10/Exiles Resources | -11 -10 -10 -10 ----------- Run | Yrd Mat Min Exi Matter Collected 427 | 260 50 . 117 Remotely . | . . . . Salvage Created 608 | 115 485 . 8 Parts 31 | 6 25 . . Haulers Intercepted 2 | . 2 . . Recyclers Shooed 1 | 1 . . . Parts Field Recycled . | . . . . Retrieved Matter . | . . . . Parts Self-Destructed . | . . . . Prevented . | . . . . Parts Restored . | . . . . Kills | -11 -10 -10 -10 ------- Run | Yrd Mat Min Exi Combat Hostiles Destroyed 11 | . 7 . 4 Guns 7 | . 7 . . AOE 4 | . . . 4 Classes Destroyed 8 | 2 5 . 1 Worker 1 | . 1 . . Builder 1 | . 1 . . Tunneler 1 | 1 . . . Hauler 2 | . 2 . . Recycler 1 | 1 . . . Operator 1 | . 1 . . Grunt 7 | . 7 . . Assembled 4 | . . . 4 Best Kill Streak 3 | 2 2 . 3 Combat Bots Only 3 | . 2 . 3 Max Kills in Single Turn 2 | 1 1 . 2 Gunslinging . | . . . . Exploded 2 | . . . 2 Melee . | . . . . Uniques/NPCs Destroyed . | . . . . Combat | -11 -10 -10 -10 -------- Run | Yrd Mat Min Exi Hostile Shots Fired 102 | . 24 . 78 Missed 25 | . 9 . 16 Hits 77 | . 15 . 62 Projectile 77 | . 15 . 62 Critical Strikes 25 | . 2 . 23 Damage Taken 1287 | . 190 . 1097 Core 264 | . 40 . 224 Absorbed by Shields . | . . . . Core Remaining (%) 100 | 100 . . . Volleys Fired 48 | 4 25 . 19 Largest 2 | 2 2 . 2 Hottest 250 | 90 90 . 250 Shots Fired 86 | 8 50 . 28 Gun 77 | 8 50 . 19 Cannon 3 | . . . 3 Launcher 6 | . . . 6 Special . | . . . . Kinetic 19 | . . . 19 Thermal 7 | 4 . . 3 Explosive 6 | . . . 6 Electromagnetic 54 | 4 50 . . Robot Hit Streak 4 | 3 4 . 4 Robot Miss Streak 4 | 1 3 . 4 Penetration Max . | . . . . Secondary Targets 1 | . 1 . . Max Gunslinging Chain 1 | . 1 . . Shots Hit Robots 50 | 6 28 . 16 Core Hits 29 | 3 13 . 13 Critical Kills . | . . . . Critical Parts Destroyed . | . . . . Critical Strikes . | . . . . Melee Attacks . | . . . . Impact . | . . . . Slashing . | . . . . Piercing . | . . . . Sneak Attacks . | . . . . Combat Hostiles . | . . . . Follow-up Attacks . | . . . . Damage Inflicted 956 | 73 518 . 365 Guns 688 | 73 460 . 155 Cannons 6 | . . . 6 Explosions 262 | . 58 . 204 Melee . | . . . . Ramming . | . . . . Kinetic 155 | . . . 155 Thermal 120 | 49 58 . 13 Explosive 197 | . . . 197 Electromagnetic 484 | 24 460 . . Impact . | . . . . Slashing . | . . . . Piercing . | . . . . Highest Corruption . | . . . . Average Corruption . | . . . . Corruption Purged . | . . . . Corruption Blocked . | . . . . Overload Shots . | . . . . Overflow Damage 6 | . . . 6 Projectiles . | . . . . Explosions 6 | . . . 6 Melee . | . . . . Knockbacks . | . . . . Impact . | . . . . Kinetic . | . . . . Secondary . | . . . . Self-Inflicted Damage 110 | . . . 110 Shots 6 | . . . 6 Rammed . | . . . . Targets Rammed . | . . . . Kicked . | . . . . Crushed . | . . . . Highest Temperature 550 | 120 54 . 550 Average Temperature 120 | 61 27 . 323 Received Heat Transfer 187 | . 147 . 40 Effects 4 | . . . 4 Interference 2 | . . . 2 Damage (major) 2 | . . . 2 Siege Activations . | . . . . Martial Activations . | . . . . Shielding Activations . | . . . . Robots Disrupted . | . . . . Combat Hostiles . | . . . . Robots Corrupted . | . . . . Combat Hostiles . | . . . . Parts Fried 4 | . 4 . . Impact Corruptions . | . . . . Robots Melted . | . . . . Combat Hostiles . | . . . . Parts Melted . | . . . . Heat Transferred 408 | 148 100 . 160 Parts Sabotaged . | . . . . Parts Stolen . | . . . . Parts Stripped . | . . . . Power Chain Reactions 1 | . 1 . . Alert | -11 -10 -10 -10 ------- Run | Yrd Mat Min Exi Maximum Alert Level . | . . . . Low Security (%) 100 | 100 100 100 . Level 1 . | . . . . Level 2 . | . . . . Level 3 . | . . . . Level 4 . | . . . . Level 5 . | . . . . High Security . | . . . . Max Security . | . . . . Peak Influence 100 | 5 100 22 . Initial 22 | . . 22 . Average 18 | 1 34 1 . Influence Increases 271 | 10 261 . . Destroy 0b10 Robot/C 140 | . 140 . . Destroy 0b10 Robot/NC 35 | 10 25 . . Destroy Leader 34 | . 34 . . Successful Hack 12 | . 12 . . Disable Machine 45 | . 45 . . Destroy Structure 5 | . 5 . . Influence Decreases 271 | 10 204 57 . Entered New Map 35 | . . 35 . Time Decay 236 | 10 204 22 . Squads Dispatched 2 | . 2 . . Investigation 1 | . 1 . . Extermination . | . . . . Reinforcement 1 | . 1 . . Assault . | . . . . Garrison . | . . . . Intercept . | . . . . Searches Triggered . | . . . . Construction Impeded . | . . . . Haulers Reinforced . | . . . . Active Scanning Responses . | . . . . Cargo Convoy Interrupts . | . . . . Stealth | -11 -10 -10 -10 --------- Run | Yrd Mat Min Exi Distress Signals . | . . . . Communications Jammed . | . . . . Distress Signals . | . . . . Times Spotted 17 | . 9 . 8 Peak Tracking Total 9 | . 2 . 9 Tactical Retreats . | . . . . Traps | -11 -10 -10 -10 ------- Run | Yrd Mat Min Exi Traps Triggered . | . . . . Indirectly . | . . . . Trap Hack Attempts . | . . . . Triggered . | . . . . Disarmed . | . . . . Reprogrammed . | . . . . Reused . | . . . . Traps Extracted . | . . . . Installed . | . . . . Triggered . | . . . . Machines | -11 -10 -10 -10 ---------- Run | Yrd Mat Min Exi Machines Disabled 8 | . 3 . 5 Max in Single Turn 1 | . 1 . 1 Machines Repaired . | . . . . Machines Dismantled . | . . . . Machines Sabotaged . | . . . . Overloaded Fab Kills . | . . . . Hacking | -11 -10 -10 -10 --------- Run | Yrd Mat Min Exi Machines Accessed 2 | . 1 . 1 Terminals 1 | . 1 . . Fabricators . | . . . . Repair Stations . | . . . . Recycling Units . | . . . . Scanalyzers . | . . . . Garrison Access . | . . . . Total Hacks 4 | . 3 . 1 Successful 3 | . 2 . 1 Failed 1 | . 1 . . Catastrophic . | . . . . Database Lockouts . | . . . . Manual 4 | . 3 . 1 Terminals 3 | . 3 . . Fabricators . | . . . . Repair Stations . | . . . . Recycling Units . | . . . . Scanalyzers . | . . . . Garrison Access . | . . . . Terminal Hacks 3 | . 2 . 1 Robot Analysis 2 | . 2 . . Proto ID Catalog 1 | . . . 1 Fabricator Hacks . | . . . . Repair Station Hacks . | . . . . Recycling Unit Hacks . | . . . . Scanalyzer . | . . . . Garrison Access Hacks . | . . . . Unauthorized Hacks . | . . . . Terminals . | . . . . Fabricators . | . . . . Repair Stations . | . . . . Recycling Units . | . . . . Scanalyzers . | . . . . Garrison Access . | . . . . Data Cores Recovered . | . . . . Used . | . . . . Hacking Detections 1 | . 1 . . Full Trace Events . | . . . . Feedback Events . | . . . . Feedback Blocked . | . . . . Robot Schematics Acquired . | . . . . Robots Built . | . . . . Authchips . | . . . . Time . | . . . . Total Robot Build Rating . | . . . . Part Schematics Acquired . | . . . . Parts Built . | . . . . Authchips . | . . . . Time . | . . . . Total Part Build Rating . | . . . . Part Studies Acquired . | . . . . Parts Repaired . | . . . . Time . | . . . . Parts Recycled . | . . . . Recycled Matter . | . . . . Retrieved Matter . | . . . . Retrieved Components . | . . . . Parts Scanalyzed . | . . . . Part Schematics Acquired . | . . . . Parts Damaged . | . . . . Bothacking | -11 -10 -10 -10 ------------ Run | Yrd Mat Min Exi Used RIF Installer . | . . . . Robots Hacked . | . . . . Non-combat . | . . . . Combat . | . . . . Robot Hacks Applied . | . . . . Relay Couplers Released . | . . . . Fabnet Peak Effective % . | . . . . Robots Rewired . | . . . . Allies Hacked . | . . . . Hacks Repelled . | . . . . Allies | -11 -10 -10 -10 -------- Run | Yrd Mat Min Exi Total Allies . | . . . . Largest Group . | . . . . Highest-Rated Group . | . . . . Highest-Rated Ally . | . . . . Total Orders . | . . . . Ally Attacks . | . . . . Total Damage . | . . . . Kills . | . . . . Allies Corrupted . | . . . . Allies Melted . | . . . . Intel | -11 -10 -10 -10 ------- Run | Yrd Mat Min Exi Active Infowar (turns) . | . . . . Robot Analysis Total 2 | . 2 . . Derelict Logs Recovered . | . . . . Drone Launches . | . . . . Drone Recoveries . | . . . . Exploration | -11 -10 -10 -10 ------------- Run | Yrd Mat Min Exi Turns Passed 2859 | 115 636 447 1661 Spaces Moved 1140 | 60 245 185 650 Core 10 | 10 . . . Treads 1130 | 50 245 185 650 Legs . | . . . . Wheels . | . . . . Hover . | . . . . Flight . | . . . . Fastest Speed 50 | 50 160 240 240 Average Speed 228 | 141 207 240 240 Slowest Speed 320 | 160 240 240 320 Overloaded Moves . | . . . . Propulsion Burnouts . | . . . . Robots Hopped . | . . . . Potential Cave-ins . | . . . . Cave-ins Triggered . | . . . . Exploration Rate (%) 39 | 5 43 48 61 Regions Visited 3 Branch Regions 2 Pre-discovered Areas . | . . . . Known Exits Taken . | . . . . Unknown Exits Taken 3 | 1 1 1 . Scrap Searched . | . . . . Spaces Dug . | . . . . Terrain Destroyed 48 | . 4 . 44 Melee . | . . . . Projectile 1 | . . . 1 AOE 47 | . 4 . 43 Terrain Rammed . | . . . . Walls Destroyed . | . . . . Machines Disabled . | . . . . Actions | -11 -10 -10 -10 --------- Run | Yrd Mat Min Exi Total 1320 | 79 324 189 728 Wait 65 | 8 29 4 24 Move 1137 | 59 244 184 650 Hop . | . . . . Pick Up 28 | 2 15 1 10 Fast Attach 9 | 6 3 . . Attach 6 | . . . 6 Detach 4 | . 2 . 2 Swap 4 | . 2 . 2 Drop 19 | . 4 . 15 Fire 48 | 4 25 . 19 Melee . | . . . . Ram . | . . . . Kick . | . . . . Crush . | . . . . Escape Stasis . | . . . . Rewire . | . . . . Trap . | . . . . Miscellaneous . | . . . . Route ------- -11/Scrapyard -10/Materials (discovered 2 exits: [*Mat] / [*Min]) -10/Mines -10/Exiles History --------- Turn | Location | Event 5 | -11/Scrapyard | Discovered new exit (range 15) 116 | -11/Scrapyard | Entered Materials 308 | -10/Materials | Build established: Mutant 471 | -10/Materials | Discovered new exit (range 13) 685 | -10/Materials | Discovered new exit (range 12) 752 | -10/Materials | Entered Mines 827 | -10/Mines | A weapon hastily lodged in a ceiling crevice suddenly fell to the ground 1187 | -10/Mines | Deemed a non-threat by the Exiles lab entrance 1187 | -10/Mines | Discovered new exit (range 5) 1199 | -10/Mines | Entered Exiles 1264 | -10/Exiles | Met 8R-AWN 1300 | -10/Exiles | Met EX-HEX 1391 | -10/Exiles | Met EX-DEC 2303 | -10/Exiles | Met EX-BIN 2337 | -10/Exiles | Aligned with FarCom system 2339 | -10/Exiles | Given EX-Vault access code 2404 | -10/Exiles | Opened EX-Vault 2418 | -10/Exiles | Found YOLO Cannon 2426 | -10/Exiles | Found Firepult 2430 | -10/Exiles | Found Modified TNC 2476 | -10/Exiles | Warned to stay clear of 0b10 Research branches 2722 | -10/Exiles | Attacked by the Exiles 2822 | -10/Exiles | Core integrity fell below 50% 2843 | -10/Exiles | Core integrity fell below 20% 2860 | -10/Exiles | Destroyed by 8R-AWN with 8R-AWN's Boregun Last Messages --------------- 02847_ HV Slug penetrates Earth. 02849_ Penetrated by HV Slug. 02849_ HV Slug penetrates Earth. 02849_ Penetrated by HV Slug. 02851_ Overheating: System interference. 02851_ Targeting Computer temporarily disabled. 02851_ Penetrated by HV Slug. 02852_ Overheating: System interference. 02852_ Firepult temporarily disabled. 02853_ Overheating: Firepult damaged (-83). 02853_ Overheating: Ion Engine damaged (-6). 02853_ Penetrated by HV Slug. 02853_ Ion Engine destroyed. 02853_ Penetrated by HV Slug. 02856_ Critical hit (Destroy). 02856_ Firepult destroyed. 02856_ Penetrated by HV Slug. 02858_ HV Slug penetrates Wall. 02858_ HV Slug penetrates Earth. 02858_ Penetrated by HV Slug. Map ----- +----------------------------------------------------+ | ?????????????????????????????????????????????????? | | ?????????????????????????????????????????????????? | | ?????????????????????????????????????????????????? | | ?????????????????????????????????????????????????? | | ?????????????????????????????????????????????????? | | ?????????????????????????????????????????????????? | | ?????????????????????????????????????????????????? | | ?????????????????????????????????????????????????? | | ?????????????????????????????????????????????????? | | ?????????????????????????????????????????????????? | | ?????????????????????????????????????????????????? | | ????????????????????????????#######??????????????? | | ?????????????? ######???????#!!! "#??????????????? | | ????????????? #""#??????# ??????????????? | | ????????????? ????### #?????????????? | | ????????????" #### ## ????????????##? | | ????????????? ## #???????????? " | | ?????????????# "#????????????" " | | ??????????????# # ####??????????"" | | ?????????????????# #??????????"" | | ????????????????????# #??????????"" | | ????????????????????### ###???????? | | ??????????????########" # #?????????" | | ??????????????# !!"" "" g ##?????????# | | ??????????????# ! ! #####???### | | ??????????????# ] !!! !@ ""#####X# | | ??????????????#! [[ ! #### % | | ??????????????# ! " ;#;#??#"" | | ??????????????######;;;####??#### % | | ?????????????????? #?????????##" | | ????????????????# # #????????????### | | ???????????????# # #???????????????#" | | ???????????????### #?????????????????## | | ????????????????# #???????????????????##" | | ???????????????? #?????????????????????#""" | | ??????????????? ???????????????????????#" | | ?????????????? ???????????????????????#"" | | ??????????????????????????????????????#""" | | ?????????????????????????????????????#""" | | ?????????????????????????????????????#""" | | ??????????????????????????????????????"" | | ??????????????????????????????????????""" | | ??????????????????????????????????????"" | | ???????????????????????????????????????"" | | ??????????????????????????????????????#"""" | | ???????????????????????????????????????? | | ????????????????????????????????????????? | | ??????????????????????????????????????????"" | | ???????????????????????????????????????????? | | ?????????????????????????????????????????????????? | +----------------------------------------------------+ Best States ------------- Heat Dissipation 35 Energy Generation 10 Energy Capacity 250 Matter Stores 300 Matter Capacity 300 Sight Range 16 Terrain Scan Density 10 Evasion (%) 40 Targeting Accuracy 5 Recoil Reduction 2 Item Schematics ----------------- None Robot Schematics ------------------ None Fabricated ------------ Nothing Repaired ---------- Nothing Studied --------- None Alien Tech Used ----------------- None Achievements -------------- None Challenges ------------ None Game ------ Seed ArchitectScatterMegatreads Manual? 0 Play Time 00:12:44 Cumulative 497.3 hours Start 2025.11.01 @ 23:12:56 End 2025.11.01 @ 23:26:09 Sessions 1 Manual Loads 0 Difficulty Rogue Special Mode None Game No. 830 Rogue 675 Adventurer 148 Explorer 7 Win Type - Total 24 Types 19/1/3/1/0/0/0/0/0/0 Lore% 72 Gallery% 77 Achievement% 59 Wizard Run 0 Options --------- Layout 1 ASCII 0 Keyboard 0 Movement Numpad Keybinds 0 Fullscreen 2 Font 24/Smallcaps Map View 50x40 Zoom Use 0% Tactical HUD 1 Map Filters NONE Filters NONE Steam 1 RUN: 0957ccbb-ca6a-401f-a72c-dc8615efa863